[Event "Titled Tuesday Blitz April 11 Late 2023"]
[White "Petre, Nad-Titus"]
[Black "Buchenau, Frank"]
[WhiteFideId "1204165"]
[BlackFideId "4604350"]
[WhiteElo "2354"]
[BlackElo "2157"]
[Result "1-0"]
[Round "06"]
[TimeControl "180+2"]
[Date "2023.04.11"]
[WhiteClock "0:00:31"]
[BlackClock "0:00:02"]

1. e4 {[%clk 0:03:00]}  e6 {[%clk 0:02:57]} 2. Nf3 {[%clk 0:02:59]}  d5 {[%clk 0:02:56]} 3. e5 {[%clk 0:03:00]}  c5 {[%clk 0:02:55]} 4. b4 {[%clk 0:03:00]}  cxb4 {[%clk 0:02:55]} 5. a3 {[%clk 0:03:00]}  Nc6 {[%clk 0:02:55]} 6. axb4 {[%clk 0:03:00]}  Bxb4 {[%clk 0:02:55]} 7. c3 {[%clk 0:03:00]}  Ba5 {[%clk 0:02:55]} 8. d4 {[%clk 0:02:54]}  Nge7 {[%clk 0:02:55]} 9. Bd3 {[%clk 0:02:52]}  Bd7 {[%clk 0:02:54]} 10. Kf1 {[%clk 0:02:42]}  b5 {[%clk 0:02:42]} 11. Ng5 {[%clk 0:02:36]}  h6 {[%clk 0:02:31]} 12. Qh5 {[%clk 0:02:36]}  O-O {[%clk 0:02:27]} 13. h4 {[%clk 0:02:24]}  f6 {[%clk 0:02:03]} 14. Nh7 {[%clk 0:02:17]}  Be8 {[%clk 0:01:31]} 15. Qe2 {[%clk 0:02:15]}  Rf7 {[%clk 0:01:15]} 16. exf6 {[%clk 0:02:12]}  Nf5 {[%clk 0:01:08]} 17. g4 {[%clk 0:02:06]}  Kxh7 {[%clk 0:00:46]} 18. Qxe6 {[%clk 0:01:50]}  Rxf6 {[%clk 0:00:33]} 19. Qe1 {[%clk 0:01:23]}  Kh8 {[%clk 0:00:27]} 20. gxf5 {[%clk 0:01:18]}  Nxd4 {[%clk 0:00:19]} 21. Rxa5 {[%clk 0:01:08]}  Nxf5 {[%clk 0:00:15]} 22. Bxf5 {[%clk 0:00:56]}  Qxa5 {[%clk 0:00:15]} 23. Bd3 {[%clk 0:00:51]}  Bc6 {[%clk 0:00:14]} 24. Rh2 {[%clk 0:00:49]}  Re8 {[%clk 0:00:13]} 25. Be3 {[%clk 0:00:48]}  Qa2 {[%clk 0:00:10]} 26. Nd2 {[%clk 0:00:46]}  a5 {[%clk 0:00:05]} 27. Bb1 {[%clk 0:00:40]}  Qb2 {[%clk 0:00:05]} 28. Qd1 {[%clk 0:00:35]}  a4 {[%clk 0:00:04]} 29. Bd4 {[%clk 0:00:36]}  Rff8 {[%clk 0:00:02]} 30. Nf3 {[%clk 0:00:31]}  a3 {[%clk 0:00:02]} 31. Qd3 {[%clk 0:00:31]} 1-0


[Site "https://www.chess.com"]

[Event "Titled Tuesday Blitz April 11 Late 2023"]
[White "Filipets, Egor"]
[Black "Pasti, Aron"]
[WhiteFideId "13503928"]
[BlackFideId "785857"]
[WhiteElo "2233"]
[BlackElo "2173"]
[Result "1/2-1/2"]
[Round "06"]
[TimeControl "180+2"]
[Date "2023.04.11"]
[WhiteClock "0:00:13"]
[BlackClock "0:00:11"]

1. e4 {[%clk 0:01:35]}  c5 {[%clk 0:02:58]} 2. Nf3 {[%clk 0:01:33]}  e6 {[%clk 0:02:58]} 3. d4 {[%clk 0:01:32]}  cxd4 {[%clk 0:02:59]} 4. Nxd4 {[%clk 0:01:32]}  Nc6 {[%clk 0:03:00]} 5. Nxc6 {[%clk 0:01:33]}  bxc6 {[%clk 0:03:00]} 6. Bd3 {[%clk 0:01:34]}  d5 {[%clk 0:03:00]} 7. O-O {[%clk 0:01:34]}  Nf6 {[%clk 0:03:00]} 8. Qe2 {[%clk 0:01:35]}  Be7 {[%clk 0:02:59]} 9. b3 {[%clk 0:01:35]}  O-O {[%clk 0:02:59]} 10. Bb2 {[%clk 0:01:36]}  c5 {[%clk 0:02:57]} 11. c4 {[%clk 0:01:33]}  Bb7 {[%clk 0:02:54]} 12. cxd5 {[%clk 0:01:28]}  exd5 {[%clk 0:02:53]} 13. Nd2 {[%clk 0:01:24]}  dxe4 {[%clk 0:02:50]} 14. Nxe4 {[%clk 0:01:22]}  Nd5 {[%clk 0:02:49]} 15. Qg4 {[%clk 0:01:20]}  g6 {[%clk 0:02:46]} 16. Rad1 {[%clk 0:01:00]}  f5 {[%clk 0:02:34]} 17. Qh3 {[%clk 0:01:00]}  fxe4 {[%clk 0:02:24]} 18. Qe6+ {[%clk 0:01:00]}  Rf7 {[%clk 0:02:24]} 19. Bxe4 {[%clk 0:01:00]}  Bf6 {[%clk 0:01:51]} 20. Bxd5 {[%clk 0:00:59]}  Bxd5 {[%clk 0:01:50]} 21. Rxd5 {[%clk 0:00:59]}  Qe8 {[%clk 0:01:49]} 22. Qxe8+ {[%clk 0:00:54]}  Rxe8 {[%clk 0:01:50]} 23. Bxf6 {[%clk 0:00:54]}  Rxf6 {[%clk 0:01:50]} 24. Rxc5 {[%clk 0:00:55]}  Re2 {[%clk 0:01:51]} 25. Ra5 {[%clk 0:00:54]}  a6 {[%clk 0:01:49]} 26. g3 {[%clk 0:00:55]}  g5 {[%clk 0:01:49]} 27. Rxg5+ {[%clk 0:00:54]}  Kf7 {[%clk 0:01:49]} 28. Ra5 {[%clk 0:00:52]}  Rd6 {[%clk 0:01:48]} 29. Rf5+ {[%clk 0:00:49]}  Kg6 {[%clk 0:01:47]} 30. Ra5 {[%clk 0:00:49]}  Rf6 {[%clk 0:01:46]} 31. Kg2 {[%clk 0:00:50]}  h5 {[%clk 0:01:44]} 32. h3 {[%clk 0:00:50]}  Rd6 {[%clk 0:01:43]} 33. Ra4 {[%clk 0:00:47]}  Rb2 {[%clk 0:01:42]} 34. Rc1 {[%clk 0:00:41]}  Rf6 {[%clk 0:01:39]} 35. Rf1 {[%clk 0:00:38]}  Rd6 {[%clk 0:01:39]} 36. Kf3 {[%clk 0:00:37]}  Rf6+ {[%clk 0:01:36]} 37. Rf4 {[%clk 0:00:38]}  Rc6 {[%clk 0:01:32]} 38. g4 {[%clk 0:00:30]}  Rxa2 {[%clk 0:01:29]} 39. Rd1 {[%clk 0:00:27]}  Rc3+ {[%clk 0:01:06]} 40. Kg2 {[%clk 0:00:25]}  Rxb3 {[%clk 0:01:03]} 41. Rd6+ {[%clk 0:00:24]}  Kg7 {[%clk 0:01:01]} 42. gxh5 {[%clk 0:00:25]}  Rb7 {[%clk 0:00:57]} 43. Rff6 {[%clk 0:00:20]}  a5 {[%clk 0:00:55]} 44. Rh6 {[%clk 0:00:21]}  Rf7 {[%clk 0:00:48]} 45. Rdg6+ {[%clk 0:00:18]}  Kf8 {[%clk 0:00:48]} 46. Rh8+ {[%clk 0:00:19]}  Ke7 {[%clk 0:00:49]} 47. h6 {[%clk 0:00:20]}  Rfxf2+ {[%clk 0:00:48]} 48. Kg3 {[%clk 0:00:20]}  Rg2+ {[%clk 0:00:48]} 49. Kh4 {[%clk 0:00:20]}  Rxg6 {[%clk 0:00:49]} 50. Kh5 {[%clk 0:00:21]}  Rag2 {[%clk 0:00:22]} 51. h7 {[%clk 0:00:18]}  R6g5+ {[%clk 0:00:15]} 52. Kh4 {[%clk 0:00:17]}  Rg7 {[%clk 0:00:12]} 53. Re8+ {[%clk 0:00:16]}  Kxe8 {[%clk 0:00:12]} 54. h8=Q+ {[%clk 0:00:17]}  Kf7 {[%clk 0:00:13]} 55. Qh5+ {[%clk 0:00:16]}  Kg8 {[%clk 0:00:12]} 56. Qd5+ {[%clk 0:00:16]}  Kh8 {[%clk 0:00:11]} 57. Qe5 {[%clk 0:00:17]}  Rg6 {[%clk 0:00:10]} 58. Qe8+ {[%clk 0:00:15]}  Kh7 {[%clk 0:00:10]} 59. Qe4 {[%clk 0:00:15]}  a4 {[%clk 0:00:10]} 60. Kh5 {[%clk 0:00:15]}  a3 {[%clk 0:00:10]} 61. h4 {[%clk 0:00:13]}  a2 {[%clk 0:00:11]} 62. Qxg6+ {[%clk 0:00:13]}  Rxg6 {[%clk 0:00:11]} 1/2-1/2


[Site "https://www.chess.com"]

[Event "Titled Tuesday Blitz April 11 Late 2023"]
[White "Ward, Ieuan C"]
[Black "Forgacs, Attila Jr."]
[WhiteFideId "406627"]
[BlackFideId "773654"]
[WhiteElo "2028"]
[BlackElo "2168"]
[Result "0-1"]
[Round "06"]
[TimeControl "180+2"]
[Date "2023.04.11"]
[WhiteClock "0:00:07"]
[BlackClock "0:00:52"]

1. d4 {[%clk 0:03:00]}  Nf6 {[%clk 0:02:59]} 2. c4 {[%clk 0:02:59]}  d6 {[%clk 0:02:58]} 3. Nc3 {[%clk 0:02:58]}  Nbd7 {[%clk 0:02:58]} 4. Nf3 {[%clk 0:02:59]}  g6 {[%clk 0:02:58]} 5. g3 {[%clk 0:02:59]}  Bg7 {[%clk 0:02:58]} 6. Bg2 {[%clk 0:02:59]}  O-O {[%clk 0:02:59]} 7. O-O {[%clk 0:03:00]}  e5 {[%clk 0:02:59]} 8. dxe5 {[%clk 0:02:53]}  dxe5 {[%clk 0:02:59]} 9. h3 {[%clk 0:02:49]}  c6 {[%clk 0:02:59]} 10. Be3 {[%clk 0:02:48]}  Qe7 {[%clk 0:02:57]} 11. Qc2 {[%clk 0:02:43]}  Nh5 {[%clk 0:02:51]} 12. Rac1 {[%clk 0:02:35]}  f5 {[%clk 0:02:51]} 13. Bg5 {[%clk 0:02:14]}  Ndf6 {[%clk 0:02:42]} 14. a3 {[%clk 0:02:05]}  h6 {[%clk 0:02:42]} 15. Bxf6 {[%clk 0:02:03]}  Qxf6 {[%clk 0:02:40]} 16. Na4 {[%clk 0:01:58]}  e4 {[%clk 0:02:36]} 17. Ne1 {[%clk 0:01:47]}  e3 {[%clk 0:02:29]} 18. fxe3 {[%clk 0:01:36]}  Nxg3 {[%clk 0:02:28]} 19. Rf3 {[%clk 0:01:35]}  Ne4 {[%clk 0:02:20]} 20. Rf4 {[%clk 0:01:30]}  g5 {[%clk 0:02:12]} 21. Rf1 {[%clk 0:01:21]}  Qe7 {[%clk 0:01:42]} 22. b4 {[%clk 0:00:45]}  Bd7 {[%clk 0:01:29]} 23. c5 {[%clk 0:00:38]}  Ng3 {[%clk 0:01:12]} 24. Rf3 {[%clk 0:00:35]}  Nh5 {[%clk 0:01:11]} 25. Qb3+ {[%clk 0:00:27]}  Be6 {[%clk 0:01:07]} 26. Qc2 {[%clk 0:00:17]}  g4 {[%clk 0:01:05]} 27. hxg4 {[%clk 0:00:17]}  fxg4 {[%clk 0:01:05]} 28. Rxf8+ {[%clk 0:00:14]}  Rxf8 {[%clk 0:01:06]} 29. Nc3 {[%clk 0:00:11]}  Qh4 {[%clk 0:01:01]} 30. Nd3 {[%clk 0:00:10]}  g3 {[%clk 0:00:57]} 31. Bf3 {[%clk 0:00:07]}  Qh2+ {[%clk 0:00:53]} 32. Kf1 {[%clk 0:00:07]}  Qh1# {[%clk 0:00:52]} 0-1


[Site "https://www.chess.com"]

[Event "Titled Tuesday Blitz April 11 Late 2023"]
[White "Marcziter, Dmitrii"]
[Black "Hadzovic, Amir"]
[WhiteFideId "13900765"]
[BlackFideId "14402300"]
[WhiteElo "2162"]
[BlackElo "2294"]
[Result "0-1"]
[Round "06"]
[TimeControl "180+2"]
[Date "2023.04.11"]
[WhiteClock "0:00:01"]
[BlackClock "0:00:14"]

1. e4 {[%clk 0:03:00]}  e5 {[%clk 0:02:59]} 2. Nf3 {[%clk 0:02:59]}  Nc6 {[%clk 0:03:00]} 3. Bc4 {[%clk 0:02:59]}  Nf6 {[%clk 0:03:00]} 4. Ng5 {[%clk 0:02:59]}  d5 {[%clk 0:03:00]} 5. exd5 {[%clk 0:02:58]}  Nd4 {[%clk 0:03:00]} 6. c3 {[%clk 0:02:58]}  b5 {[%clk 0:03:00]} 7. Bf1 {[%clk 0:02:58]}  Nxd5 {[%clk 0:03:00]} 8. cxd4 {[%clk 0:02:57]}  Qxg5 {[%clk 0:03:01]} 9. Bxb5+ {[%clk 0:02:57]}  Kd8 {[%clk 0:03:01]} 10. O-O {[%clk 0:02:56]}  Bb7 {[%clk 0:03:01]} 11. Qf3 {[%clk 0:02:57]}  Rb8 {[%clk 0:03:01]} 12. dxe5 {[%clk 0:02:56]}  Ne3 {[%clk 0:02:56]} 13. Qh3 {[%clk 0:02:55]}  Qxg2+ {[%clk 0:02:54]} 14. Qxg2 {[%clk 0:02:55]}  Nxg2 {[%clk 0:02:54]} 15. d4 {[%clk 0:02:55]}  Be7 {[%clk 0:02:42]} 16. Nc3 {[%clk 0:02:37]}  Nh4 {[%clk 0:02:39]} 17. f4 {[%clk 0:02:19]}  Nf3+ {[%clk 0:02:37]} 18. Kf2 {[%clk 0:02:16]}  Nxd4 {[%clk 0:02:37]} 19. Rd1 {[%clk 0:02:12]}  c5 {[%clk 0:02:37]} 20. Be3 {[%clk 0:02:04]}  Kc7 {[%clk 0:02:35]} 21. Rac1 {[%clk 0:01:52]}  Bh4+ {[%clk 0:01:23]} 22. Kf1 {[%clk 0:01:46]}  Bf3 {[%clk 0:01:24]} 23. Bxd4 {[%clk 0:01:36]}  Bxd1 {[%clk 0:01:22]} 24. Bxc5 {[%clk 0:01:36]}  Bf3 {[%clk 0:01:05]} 25. Bd6+ {[%clk 0:01:30]}  Kb7 {[%clk 0:01:05]} 26. Bxb8 {[%clk 0:01:28]}  Kxb8 {[%clk 0:01:06]} 27. Be2 {[%clk 0:01:23]}  Bc6 {[%clk 0:01:03]} 28. Rd1 {[%clk 0:01:20]}  Re8 {[%clk 0:00:57]} 29. Bc4 {[%clk 0:01:12]}  g5 {[%clk 0:00:36]} 30. Bxf7 {[%clk 0:01:05]}  Rf8 {[%clk 0:00:35]} 31. e6 {[%clk 0:00:48]}  gxf4 {[%clk 0:00:32]} 32. Rd4 {[%clk 0:00:38]}  Bg5 {[%clk 0:00:26]} 33. Ne4 {[%clk 0:00:29]}  Be7 {[%clk 0:00:22]} 34. Nc3 {[%clk 0:00:22]}  f3 {[%clk 0:00:20]} 35. Nd5 {[%clk 0:00:17]}  Bc5 {[%clk 0:00:18]} 36. Rd2 {[%clk 0:00:14]}  Bb5+ {[%clk 0:00:14]} 37. Ke1 {[%clk 0:00:13]}  Rd8 {[%clk 0:00:10]} 38. e7 {[%clk 0:00:07]}  Bxe7 {[%clk 0:00:11]} 39. Nxe7 {[%clk 0:00:07]}  Rxd2 {[%clk 0:00:12]} 40. Kxd2 {[%clk 0:00:07]}  f2 {[%clk 0:00:12]} 41. Nc6+ {[%clk 0:00:01]}  Kc7 {[%clk 0:00:08]} 42. Nd4 {[%clk 0:00:01]}  f1=Q {[%clk 0:00:07]} 43. Nxb5+ {[%clk 0:00:01]}  Qxb5 {[%clk 0:00:08]} 44. Bb3 {[%clk 0:00:02]}  Qg5+ {[%clk 0:00:07]} 45. Kc3 {[%clk 0:00:01]}  Qh4 {[%clk 0:00:08]} 46. a4 {[%clk 0:00:01]}  Qxh2 {[%clk 0:00:09]} 47. a5 {[%clk 0:00:01]}  Qg3+ {[%clk 0:00:09]} 48. Kb4 {[%clk 0:00:01]}  h5 {[%clk 0:00:10]} 49. Bc4 {[%clk 0:00:01]}  h4 {[%clk 0:00:11]} 50. Kc5 {[%clk 0:00:01]}  h3 {[%clk 0:00:11]} 51. b4 {[%clk 0:00:02]}  h2 {[%clk 0:00:12]} 52. b5 {[%clk 0:00:03]}  h1=Q {[%clk 0:00:11]} 53. b6+ {[%clk 0:00:04]}  axb6+ {[%clk 0:00:12]} 54. axb6+ {[%clk 0:00:04]}  Kb8 {[%clk 0:00:13]} 55. Bd5 {[%clk 0:00:04]}  Qc1+ {[%clk 0:00:13]} 56. Kb5 {[%clk 0:00:04]}  Qga3 {[%clk 0:00:13]} 57. b7 {[%clk 0:00:01]}  Qcc5# {[%clk 0:00:14]} 0-1


[Site "https://www.chess.com"]

[Event "Titled Tuesday Blitz April 11 Late 2023"]
[White "Ozalp, Burak"]
[Black "Vovk, Orest"]
[WhiteFideId "6314210"]
[BlackFideId "14113490"]
[WhiteElo "2106"]
[BlackElo "2215"]
[Result "0-1"]
[Round "06"]
[TimeControl "180+2"]
[Date "2023.04.11"]
[WhiteClock "0:00:07"]
[BlackClock "0:00:31"]

1. c4 {[%clk 0:03:00]}  g5 {[%clk 0:02:55]} 2. d4 {[%clk 0:02:59]}  Bg7 {[%clk 0:02:54]} 3. Bxg5 {[%clk 0:02:56]}  c5 {[%clk 0:02:55]} 4. Nf3 {[%clk 0:02:51]}  Qb6 {[%clk 0:02:55]} 5. Bc1 {[%clk 0:02:19]}  cxd4 {[%clk 0:02:53]} 6. g3 {[%clk 0:02:19]}  Nc6 {[%clk 0:02:47]} 7. Bg2 {[%clk 0:02:18]}  Nf6 {[%clk 0:02:45]} 8. O-O {[%clk 0:02:18]}  d6 {[%clk 0:02:45]} 9. e3 {[%clk 0:01:47]}  dxe3 {[%clk 0:02:17]} 10. Bxe3 {[%clk 0:01:46]}  Qxb2 {[%clk 0:02:17]} 11. Nbd2 {[%clk 0:01:47]}  Ng4 {[%clk 0:02:15]} 12. Rb1 {[%clk 0:01:41]}  Nxe3 {[%clk 0:02:15]} 13. fxe3 {[%clk 0:01:42]}  Qc3 {[%clk 0:02:14]} 14. Qe2 {[%clk 0:01:27]}  Bh6 {[%clk 0:02:11]} 15. Rb3 {[%clk 0:01:22]}  Qg7 {[%clk 0:02:06]} 16. Ne4 {[%clk 0:00:49]}  O-O {[%clk 0:02:03]} 17. Nh4 {[%clk 0:00:49]}  Ne5 {[%clk 0:01:59]} 18. Nf5 {[%clk 0:00:44]}  Bxf5 {[%clk 0:01:59]} 19. Rxf5 {[%clk 0:00:45]}  b6 {[%clk 0:01:57]} 20. Rb1 {[%clk 0:00:39]}  Rac8 {[%clk 0:01:55]} 21. Rbf1 {[%clk 0:00:39]}  Nxc4 {[%clk 0:01:50]} 22. Qh5 {[%clk 0:00:35]}  Nxe3 {[%clk 0:01:45]} 23. R5f4 {[%clk 0:00:14]}  Bxf4 {[%clk 0:01:34]} 24. Rxf4 {[%clk 0:00:15]}  Rc1+ {[%clk 0:01:17]} 25. Kf2 {[%clk 0:00:15]}  Qb2+ {[%clk 0:01:07]} 26. Kf3 {[%clk 0:00:16]}  Qxg2+ {[%clk 0:01:04]} 27. Kxe3 {[%clk 0:00:12]}  Re1+ {[%clk 0:00:54]} 28. Kd3 {[%clk 0:00:12]}  f5 {[%clk 0:00:37]} 29. Qg5+ {[%clk 0:00:07]}  Kh8 {[%clk 0:00:36]} 30. Nf6 {[%clk 0:00:07]}  Qe2+ {[%clk 0:00:31]} 0-1


[Site "https://www.chess.com"]

[Event "Titled Tuesday Blitz April 11 Late 2023"]
[White "Santos Flores, Alberto"]
[Black "Novikova, Galina"]
[WhiteFideId "3601234"]
[BlackFideId "4157095"]
[WhiteElo "2235"]
[BlackElo "1953"]
[Result "1-0"]
[Round "06"]
[TimeControl "180+2"]
[Date "2023.04.11"]
[WhiteClock "0:01:57"]
[BlackClock "0:00:48"]

1. e4 {[%clk 0:03:00]}  e6 {[%clk 0:03:00]} 2. d4 {[%clk 0:03:00]}  d5 {[%clk 0:03:01]} 3. Nc3 {[%clk 0:02:59]}  Bb4 {[%clk 0:03:00]} 4. e5 {[%clk 0:02:59]}  c5 {[%clk 0:03:00]} 5. a3 {[%clk 0:02:59]}  Bxc3+ {[%clk 0:03:01]} 6. bxc3 {[%clk 0:03:00]}  Ne7 {[%clk 0:03:02]} 7. h4 {[%clk 0:02:56]}  Nbc6 {[%clk 0:03:00]} 8. h5 {[%clk 0:02:56]}  h6 {[%clk 0:03:01]} 9. Nf3 {[%clk 0:02:53]}  Qa5 {[%clk 0:02:51]} 10. Bd2 {[%clk 0:02:51]}  Qc7 {[%clk 0:02:51]} 11. Bd3 {[%clk 0:02:48]}  Bd7 {[%clk 0:02:49]} 12. O-O {[%clk 0:02:43]}  c4 {[%clk 0:02:47]} 13. Be2 {[%clk 0:02:43]}  g5 {[%clk 0:02:44]} 14. hxg6 {[%clk 0:02:41]}  Nxg6 {[%clk 0:02:43]} 15. g3 {[%clk 0:02:39]}  O-O-O {[%clk 0:02:42]} 16. Kg2 {[%clk 0:02:40]}  Rdg8 {[%clk 0:02:41]} 17. Rh1 {[%clk 0:02:40]}  h5 {[%clk 0:02:40]} 18. Bg5 {[%clk 0:02:37]}  Nce7 {[%clk 0:02:07]} 19. Qd2 {[%clk 0:02:35]}  Nf5 {[%clk 0:02:06]} 20. Bf6 {[%clk 0:02:35]}  Rh7 {[%clk 0:01:59]} 21. Ng5 {[%clk 0:02:35]}  Rhg7 {[%clk 0:01:46]} 22. Rxh5 {[%clk 0:02:32]}  b6 {[%clk 0:01:41]} 23. Rah1 {[%clk 0:02:28]}  Kb7 {[%clk 0:01:40]} 24. Bxg7 {[%clk 0:02:28]}  Rxg7 {[%clk 0:01:41]} 25. Rh7 {[%clk 0:02:26]}  Qd8 {[%clk 0:01:11]} 26. Rxg7 {[%clk 0:02:23]}  Nxg7 {[%clk 0:01:12]} 27. Nxf7 {[%clk 0:02:23]}  Qf8 {[%clk 0:01:12]} 28. Nd6+ {[%clk 0:02:20]}  Ka6 {[%clk 0:01:12]} 29. Qg5 {[%clk 0:02:11]}  Ne7 {[%clk 0:00:58]} 30. Rh7 {[%clk 0:02:06]}  Nef5 {[%clk 0:00:58]} 31. Nxf5 {[%clk 0:02:06]}  Nxf5 {[%clk 0:00:57]} 32. Rxd7 {[%clk 0:02:05]}  Qxa3 {[%clk 0:00:57]} 33. g4 {[%clk 0:02:02]}  Qxc3 {[%clk 0:00:53]} 34. gxf5 {[%clk 0:02:02]}  Qxd4 {[%clk 0:00:54]} 35. fxe6 {[%clk 0:01:57]}  Qe4+ {[%clk 0:00:48]} 36. Bf3 {[%clk 0:01:57]} 1-0


[Site "https://www.chess.com"]

[Event "Titled Tuesday Blitz April 11 Late 2023"]
[White "Prieto Aranguren, Alain"]
[Black "Wu, Brandon"]
[WhiteFideId "2268906"]
[BlackFideId "30909228"]
[WhiteElo "2209"]
[BlackElo "2123"]
[Result "0-1"]
[Round "06"]
[TimeControl "180+2"]
[Date "2023.04.11"]
[WhiteClock "0:00:12"]
[BlackClock "0:00:20"]

1. d4 {[%clk 0:02:59]}  Nf6 {[%clk 0:03:00]} 2. c4 {[%clk 0:02:58]}  g6 {[%clk 0:03:00]} 3. Nc3 {[%clk 0:02:57]}  d5 {[%clk 0:03:01]} 4. Nf3 {[%clk 0:02:55]}  Bg7 {[%clk 0:03:01]} 5. Qb3 {[%clk 0:02:56]}  dxc4 {[%clk 0:03:01]} 6. Qxc4 {[%clk 0:02:56]}  O-O {[%clk 0:03:02]} 7. e4 {[%clk 0:02:54]}  a6 {[%clk 0:03:02]} 8. e5 {[%clk 0:02:54]}  b5 {[%clk 0:03:03]} 9. Qb3 {[%clk 0:02:55]}  Nfd7 {[%clk 0:03:02]} 10. e6 {[%clk 0:02:55]}  fxe6 {[%clk 0:03:02]} 11. Be3 {[%clk 0:02:55]}  Nb6 {[%clk 0:02:55]} 12. h4 {[%clk 0:02:53]}  Nc6 {[%clk 0:02:43]} 13. Rd1 {[%clk 0:02:49]}  Na5 {[%clk 0:02:37]} 14. Qc2 {[%clk 0:02:47]}  Nac4 {[%clk 0:02:34]} 15. h5 {[%clk 0:02:46]}  Nxe3 {[%clk 0:02:31]} 16. fxe3 {[%clk 0:02:44]}  Qe8 {[%clk 0:02:31]} 17. Bd3 {[%clk 0:02:38]}  Bb7 {[%clk 0:02:15]} 18. hxg6 {[%clk 0:02:36]}  h6 {[%clk 0:02:14]} 19. Ne5 {[%clk 0:02:26]}  Bxe5 {[%clk 0:01:50]} 20. dxe5 {[%clk 0:02:26]}  Kg7 {[%clk 0:01:18]} 21. Qe2 {[%clk 0:02:02]}  b4 {[%clk 0:01:08]} 22. Ne4 {[%clk 0:01:57]}  Qxg6 {[%clk 0:01:00]} 23. Nf6 {[%clk 0:01:35]}  Qg3+ {[%clk 0:00:59]} 24. Kd2 {[%clk 0:01:30]}  exf6 {[%clk 0:00:53]} 25. Rxh6 {[%clk 0:01:23]}  Kxh6 {[%clk 0:00:41]} 26. Rh1+ {[%clk 0:01:22]}  Kg7 {[%clk 0:00:40]} 27. Rh7+ {[%clk 0:01:09]}  Kg8 {[%clk 0:00:40]} 28. Qh5 {[%clk 0:01:01]}  Nc4+ {[%clk 0:00:27]} 29. Bxc4 {[%clk 0:00:41]}  Rad8+ {[%clk 0:00:23]} 30. Bd3 {[%clk 0:00:24]}  Rxd3+ {[%clk 0:00:23]} 31. Kxd3 {[%clk 0:00:23]}  Be4+ {[%clk 0:00:20]} 32. Kxe4 {[%clk 0:00:16]}  Qxg2+ {[%clk 0:00:20]} 33. Kd4 {[%clk 0:00:12]}  Qd5# {[%clk 0:00:20]} 0-1


[Site "https://www.chess.com"]

[Event "Titled Tuesday Blitz April 11 Late 2023"]
[White "Sarkar, Justin"]
[Black "Guzman Moneo, Alberto"]
[WhiteFideId "2010011"]
[BlackFideId "2209616"]
[WhiteElo "2189"]
[BlackElo "2157"]
[Result "0-1"]
[Round "06"]
[TimeControl "180+2"]
[Date "2023.04.11"]
[WhiteClock "0:00:01"]
[BlackClock "0:00:16"]

1. e4 {[%clk 0:02:54]}  c5 {[%clk 0:02:58]} 2. Nf3 {[%clk 0:02:52]}  Nc6 {[%clk 0:02:57]} 3. Nc3 {[%clk 0:02:47]}  g6 {[%clk 0:02:56]} 4. d4 {[%clk 0:02:46]}  cxd4 {[%clk 0:02:57]} 5. Nxd4 {[%clk 0:02:46]}  Bg7 {[%clk 0:02:54]} 6. Be3 {[%clk 0:02:45]}  Nf6 {[%clk 0:02:54]} 7. Nb3 {[%clk 0:02:43]}  a5 {[%clk 0:02:53]} 8. a4 {[%clk 0:02:41]}  O-O {[%clk 0:02:52]} 9. Be2 {[%clk 0:02:40]}  d5 {[%clk 0:02:51]} 10. exd5 {[%clk 0:02:33]}  Nb4 {[%clk 0:02:50]} 11. Bf3 {[%clk 0:02:30]}  h5 {[%clk 0:02:19]} 12. h3 {[%clk 0:02:22]}  e6 {[%clk 0:02:08]} 13. Bc5 {[%clk 0:02:03]}  Re8 {[%clk 0:02:02]} 14. d6 {[%clk 0:02:00]}  e5 {[%clk 0:01:53]} 15. Ne4 {[%clk 0:01:28]}  Bf5 {[%clk 0:01:44]} 16. Qe2 {[%clk 0:01:19]}  Rc8 {[%clk 0:01:32]} 17. O-O {[%clk 0:00:58]}  Nxc2 {[%clk 0:01:18]} 18. Qxc2 {[%clk 0:00:50]}  b6 {[%clk 0:01:14]} 19. Nxf6+ {[%clk 0:00:13]}  Bxf6 {[%clk 0:01:04]} 20. Be4 {[%clk 0:00:13]}  Be6 {[%clk 0:00:55]} 21. Rfd1 {[%clk 0:00:04]}  bxc5 {[%clk 0:00:51]} 22. Nxc5 {[%clk 0:00:04]}  Qb6 {[%clk 0:00:33]} 23. Rac1 {[%clk 0:00:03]}  Red8 {[%clk 0:00:25]} 24. d7 {[%clk 0:00:02]}  Rc7 {[%clk 0:00:18]} 25. Bxg6 {[%clk 0:00:02]}  Rxc5 {[%clk 0:00:17]} 26. Qxc5 {[%clk 0:00:02]}  Qxc5 {[%clk 0:00:17]} 27. Rxc5 {[%clk 0:00:02]}  fxg6 {[%clk 0:00:17]} 28. Rc6 {[%clk 0:00:01]}  Kf7 {[%clk 0:00:16]} 29. Ra6 {[%clk 0:00:01]}  Rxd7 {[%clk 0:00:16]} 0-1


[Site "https://www.chess.com"]

[Event "Titled Tuesday Blitz April 11 Late 2023"]
[White "Sariego Figueredo, Wilfredo"]
[Black "Estrada Nieto, Julian"]
[WhiteFideId "3500080"]
[BlackFideId "5101018"]
[WhiteElo "2309"]
[BlackElo "2161"]
[Result "0-1"]
[Round "06"]
[TimeControl "180+2"]
[Date "2023.04.11"]
[WhiteClock "0:00:24"]
[BlackClock "0:01:00"]

1. d4 {[%clk 0:03:00]}  d5 {[%clk 0:03:00]} 2. Bf4 {[%clk 0:02:59]}  Nf6 {[%clk 0:03:00]} 3. e3 {[%clk 0:02:55]}  c5 {[%clk 0:03:00]} 4. c3 {[%clk 0:02:54]}  Nc6 {[%clk 0:02:59]} 5. Nf3 {[%clk 0:02:54]}  Qb6 {[%clk 0:02:55]} 6. b3 {[%clk 0:02:52]}  Bg4 {[%clk 0:02:53]} 7. Nbd2 {[%clk 0:02:51]}  e6 {[%clk 0:02:52]} 8. Be2 {[%clk 0:02:51]}  Qa5 {[%clk 0:02:50]} 9. Qc1 {[%clk 0:02:29]}  cxd4 {[%clk 0:02:46]} 10. cxd4 {[%clk 0:02:27]}  Ba3 {[%clk 0:02:46]} 11. Qc2 {[%clk 0:02:19]}  Bf5 {[%clk 0:02:43]} 12. Qd1 {[%clk 0:01:52]}  Nb4 {[%clk 0:02:43]} 13. O-O {[%clk 0:01:51]}  Bb2 {[%clk 0:02:28]} 14. a4 {[%clk 0:01:39]}  O-O {[%clk 0:02:24]} 15. Nh4 {[%clk 0:01:33]}  Bc2 {[%clk 0:02:19]} 16. Qe1 {[%clk 0:01:33]}  Bxa1 {[%clk 0:02:15]} 17. Qxa1 {[%clk 0:01:34]}  Bd3 {[%clk 0:02:09]} 18. Bxd3 {[%clk 0:01:33]}  Nxd3 {[%clk 0:02:09]} 19. Nhf3 {[%clk 0:01:31]}  Nxf4 {[%clk 0:02:07]} 20. exf4 {[%clk 0:01:29]}  Rac8 {[%clk 0:02:06]} 21. Rc1 {[%clk 0:01:27]}  Ne4 {[%clk 0:01:59]} 22. Nxe4 {[%clk 0:01:25]}  dxe4 {[%clk 0:01:59]} 23. Ne5 {[%clk 0:01:25]}  Qd2 {[%clk 0:01:53]} 24. Rd1 {[%clk 0:01:21]}  Qxf4 {[%clk 0:01:52]} 25. g3 {[%clk 0:01:16]}  Qf5 {[%clk 0:01:52]} 26. Rc1 {[%clk 0:01:08]}  h5 {[%clk 0:01:47]} 27. Qa3 {[%clk 0:01:02]}  h4 {[%clk 0:01:30]} 28. Rc4 {[%clk 0:00:46]}  e3 {[%clk 0:01:17]} 29. fxe3 {[%clk 0:00:44]}  Qe4 {[%clk 0:01:15]} 30. Qc1 {[%clk 0:00:34]}  h3 {[%clk 0:01:14]} 31. Qd2 {[%clk 0:00:29]}  Qb1+ {[%clk 0:01:08]} 32. Kf2 {[%clk 0:00:28]}  Qh1 {[%clk 0:01:07]} 33. Ke2 {[%clk 0:00:22]}  Qxh2+ {[%clk 0:01:04]} 34. Kd3 {[%clk 0:00:23]}  Qxd2+ {[%clk 0:01:00]} 35. Kxd2 {[%clk 0:00:24]}  h2 {[%clk 0:01:00]} 0-1


[Site "https://www.chess.com"]